bitfinex-derivatives/quotes_ETHF0:USTF0_20250405
["timestamp","ask_amount","ask_price","bid_price","bid_amount"]
[1743861755283,4.6875,1792.8,1792.4,3.98906]
[1743861755489,4.6875,1792.8,1792.5,1.4398]
[1743861755685,4.6875,1792.8,1792.4,3.2078]
[1743861755989,0.78123,1792.6,1792.2,4.6476]
[1743861756183,1.4797,1792.5,1792.2,5.42895]
[1743861756484,1.4797,1792.5,1792.3,0.78132]
[1743861756887,1.4797,1792.5,1792.3,0.78131]
[1743861757082,0.7323,1793.0,1792.3,0.78131]
[1743861757083,3.2078,1793.0,1792.3,2.5]
[1743861757288,125.87509678,1793.9,1793.4,0.78085]
[1743861757487,125.87509678,1793.9,1793.4,4.61985]
[1743861757790,3.2078,1793.8,1793.3,4.62726692]
[1743861758085,3.2078,1793.8,1793.4,2.27285]
[1743861758491,0.7407,1793.9,1793.6,0.78075]
[1743861758784,0.7407,1793.9,1793.7,1.492]
[1743861758992,3.98851,1793.8,1793.6,40.8]
[1743861759284,3.2078,1793.8,1793.6,0.78075]
[1743861759490,3.9504,1794.2,1793.8,0.78066]
[1743861759789,1.52126,1794.1,1793.8,0.78066]
[1743861759992,0.7407,1794.1,1793.7,5.341]
[1743861760290,3.9504,1794.2,1794.0,0.78059]
[1743861760496,3.9504,1794.2,1793.7,5.341]
[1743861760497,3.9504,1794.2,1794.1,1.4685]
[1743861760792,3.9504,1794.2,1793.8,0.78067]
[1743861761091,3.2078,1794.0,1793.7,2.24921]
[1743861761294,3.9884,1794.0,1793.7,2.24921]
[1743861761485,3.2078,1794.0,1793.7,2.24921]
[1743861761687,3.98839,1794.0,1793.7,2.24921]
[1743861761883,3.2078,1794.0,1793.7,1.4685]
[1743861762089,3.9504,1794.2,1793.8,40.8]
[1743861762294,3.9504,1794.2,1794.0,0.78059]
[1743861762588,4.73092,1794.2,1793.9,0.78063]
[1743861762892,3.9646,1794.6,1793.9,1.4685]
[1743861763089,1.403,1794.5,1794.4,0.78042]
[1743861763294,2.18338,1794.5,1794.2,0.78048]
[1743861763488,3.2078,1794.6,1794.3,1.50286307]
[1743861763688,3.2078,1794.6,1794.5,0.78038]
[1743861763888,3.2078,1794.8,1794.4,3.878]
[1743861764095,1.4353,1794.9,1794.7,0.78029]
[1743861764389,3.2078,1795.0,1794.8,0.78022]
[1743861764591,3.2078,1795.0,1794.6,0.78031]
[1743861764791,2.21554,1794.9,1794.7,1.4945]
[1743861764984,0.78024,1794.8,1794.7,1.4945]
[1743861765186,4.6431,1794.8,1794.4,3.878]
[1743861765397,0.78029,1794.7,1794.4,6.1529]
[1743861765587,2.21564,1794.6,1794.4,5.3725]
[1743861765788,0.78038,1794.5,1794.3,0.00836307]
[1743861765987,1.4353,1794.4,1794.3,0.00836307]
[1743861766186,3.98815,1794.6,1794.3,0.78879307]
[1743861766387,0.78038,1794.5,1794.3,0.00836307]
[1743861766588,3.98822,1794.4,1794.3,0.00836307]
[1743861766790,3.0498,1794.5,1794.3,0.00836307]
[1743861766989,3.0498,1794.5,1794.3,1.46576307]
[1743861767288,2.2694,1794.5,1794.3,1.46576307]
[1743861767493,0.7352,1794.5,1794.4,0.78042]
[1743861767792,3.98816,1794.6,1794.3,2.24619307]
[1743861767995,0.78038,1794.5,1794.3,6.12121307]
[1743861768191,3.98815,1794.6,1794.4,1.4574]
[1743861768392,0.78038,1794.5,1794.4,1.4574]
[1743861768795,2.31458,1794.5,1794.4,1.4574]
[1743861768997,0.78038,1794.5,1794.4,1.4574]
[1743861769198,3.98815,1794.6,1794.4,1.4574]
[1743861769590,3.2078,1794.6,1794.4,1.4574]
[1743861769894,0.7207,1794.7,1794.5,0.78038]
[1743861770093,0.78029,1794.7,1794.6,1.5083]
[1743861770296,4.6674,1794.8,1794.6,1.5083]
[1743861770600,5.44767,1794.8,1794.6,2.28863]
[1743861770790,3.2078,1794.8,1794.7,0.78029]
[1743861771099,0.78023,1794.9,1794.7,0.78029]
[1743861771100,4.72319,1795.0,1794.7,2.28856]
[1743861771397,0.78024,1794.8,1794.7,1.5083]
[1743861772097,1.4596,1794.9,1794.7,1.5083]
[1743861772098,2.23984,1794.9,1794.7,1.5083]
[1743861772297,5.892,1796.1,1794.8,3.925]
[1743861772492,1.4912,1795.8,1795.6,3.2078]
[1743861772685,1.4912,1795.8,1795.4,3.2078]
[1743861772891,0.77991,1795.6,1795.3,0.78837307]
[1743861773194,3.945,1795.8,1795.4,3.2078]
[1743861773394,0.77984,1795.8,1795.6,3.2078]
[1743861773696,1.4912,1795.7,1795.5,1.5343]
[1743861773887,0.7799,1795.6,1795.5,1.5343]
[1743861774593,0.77994,1795.5,1795.4,3.2078]
[1743861774791,0.77998,1795.4,1795.3,0.00836307]
[1743861775186,2.27118,1795.4,1795.3,0.00836307]
[1743861775392,4.77118,1795.4,1795.3,0.00836307]
[1743861776595,1.95027,1795.2,1794.6,3.2078]
[1743861776797,0.78022,1794.9,1794.7,1.45]
[1743861777201,0.78024,1794.8,1794.7,1.45]
[1743861778102,2.26944,1794.8,1794.7,1.45]
[1743861778293,0.78029,1794.7,1794.6,3.21616307]
[1743861778499,2.24699,1794.7,1794.6,3.21616307]
[1743861779204,2.24699,1794.7,1794.6,0.00836307]
[1743861780898,4.74699,1794.7,1794.6,0.00836307]
[1743861781203,7.95479,1794.7,1794.6,3.07e-06]
[1743861781399,1.95095,1794.5,1793.8,1.4001]
[1743861781697,13.0665,1794.7,1793.9,3.2078]
[1743861781698,8.07821,1794.4,1793.9,3.2078]
[1743861781902,0.78055,1794.1,1794.0,1.4001]
[1743861782707,0.78059,1794.0,1793.9,3.21616307]
[1743861783203,0.78068,1793.8,1793.7,1.4001]
[1743861783505,0.78072,1793.7,1793.6,3.2078]
[1743861783706,2.21202,1793.7,1793.6,3.2078]
[1743861784303,2.21202,1793.7,1793.5,1.4001]
[1743861784304,7.8923,1793.7,1793.5,0.00836307]
[1743861784498,0.78098,1793.2,1793.0,3.2078]
[1743861784698,4.76191,1793.3,1793.1,42.3304]
[1743861784898,4.7619,1793.3,1793.2,1.5304]
[1743861786010,6.1937,1793.3,1793.2,1.5304]
[1743861786402,4.7619,1793.3,1793.2,1.5304]
[1743861787207,3.9886,1793.6,1793.3,0.78087]
[1743861787401,3.2078,1793.6,1793.4,1.4487]
[1743861787707,0.78081,1793.5,1793.4,1.4487]
[1743861788700,0.78081,1793.5,1793.4,42.2487]
[1743861789206,2.29391,1793.5,1793.4,42.2487]
[1743861789511,2.29391,1793.5,1793.4,1.4487]
[1743861789902,2.29391,1793.5,1793.4,40.8]
[1743861790109,0.78094,1793.2,1793.1,0.00836307]
[1743861790310,0.78094,1793.2,1793.1,1.45706307]
[1743861790810,2.18344,1793.2,1793.1,1.45706307]
[1743861792413,0.78094,1793.2,1793.1,1.45706307]
[1743861793307,0.78094,1793.2,1793.1,0.00836307]
[1743861793507,2.27204,1793.2,1793.1,0.00836307]
[1743861793709,5.47984,1793.2,1793.1,0.00836307]
[1743861794413,5.47984,1793.2,1792.9,1.5133]
[1743861794414,0.78103,1793.0,1792.9,1.5133]
[1743861794614,4.74303,1793.0,1792.9,1.5133]
[1743861796506,1.4911,1793.2,1792.9,1.5133]
[1743861796812,0.78103,1793.0,1792.9,1.5133]
[1743861797414,2.22373,1793.0,1792.9,1.5133]
[1743861797614,0.78107,1792.9,1792.8,0.00836307]
[1743861797818,2.22377,1792.9,1792.8,0.00836307]
[1743861798717,0.78107,1792.9,1792.8,0.00836307]
[1743861799321,2.22376,1793.0,1792.8,0.00836307]
[1743861799616,0.78107,1792.9,1792.8,0.00836307]
[1743861800417,4.73602,1793.1,1792.9,0.78107]
[1743861800621,4.72598,1793.1,1793.0,1.5009]
[1743861801217,0.78107,1792.9,1792.8,0.00836307]
[1743861801423,0.78107,1792.9,1792.8,1.50926307]
[1743861802516,3.98887,1792.9,1792.8,1.50926307]
[1743861802819,0.78133,1792.3,1792.2,3.2078]
[1743861803026,0.78133,1792.3,1792.2,3.9734]
[1743861803723,3.945,1792.5,1792.2,3.9734]
[1743861803912,0.00836307,1792.4,1792.2,4.75475]
[1743861804228,0.00836307,1792.4,1792.3,2.26803]
[1743861804517,0.00836307,1792.4,1792.3,3.01223]
[1743861804823,0.78965307,1792.4,1792.3,2.2309]
[1743861805124,0.00836307,1792.4,1792.3,3.01223]
[1743861805518,0.00836307,1792.4,1792.3,5.51223]
[1743861805920,0.00836307,1792.4,1792.3,4.7309]
[1743861806225,0.78965307,1792.4,1792.3,2.2309]
[1743861806431,0.00836307,1792.4,1792.3,2.2309]
[1743861807124,0.78965307,1792.4,1792.3,2.2309]
[1743861807329,0.00836307,1792.4,1792.3,3.01223]
[1743861807526,0.78965307,1792.4,1792.3,2.2309]
[1743861808028,0.00836307,1792.4,1792.3,3.01223]
[1743861809022,0.78965307,1792.4,1792.3,2.2309]
[1743861809326,0.78965307,1792.4,1792.3,1.4867]
[1743861811433,4.71965307,1792.4,1792.3,1.4867]
[1743861811725,0.78138,1792.2,1792.1,0.00565487]
[1743861812335,2.31528,1792.2,1792.1,0.00565487]
[1743861812729,0.78138,1792.2,1792.1,0.00565487]
[1743861814229,2.31528,1792.2,1792.1,0.00565487]
[1743861814734,4.81528,1792.2,1792.1,0.00565487]
[1743861814933,1.95357,1792.1,1791.8,3.2078]
[1743861815134,6.19266,1792.0,1791.9,1.4239]
[1743861818635,4.70246,1792.0,1791.9,1.4239]
[1743861819832,0.78135,1792.3,1792.1,0.78141]
[1743861820032,3.91936307,1792.4,1792.2,2.9131]
[1743861820238,0.78133,1792.3,1792.2,2.9131]
[1743861820539,4.70068307,1792.4,1792.2,2.9131]
[1743861820736,0.78133,1792.3,1792.2,2.9131]
[1743861823138,4.69168307,1792.4,1792.2,2.9131]
[1743861823344,0.78133,1792.3,1792.2,2.9131]
[1743861823536,0.78133,1792.3,1792.2,3.65480256]
[1743861823936,0.78133,1792.3,1792.2,2.9131]
[1743861824236,0.78133,1792.3,1792.2,3.65500122]
[1743861824643,0.78133,1792.3,1792.2,2.9131]
[1743861824841,0.78133,1792.3,1792.2,3.65519811]
[1743861825455,0.78133,1792.3,1792.2,3.65532006]
[1743861826257,0.78133,1792.3,1792.2,3.65555296]
[1743861830556,0.78133,1792.3,1792.2,2.1622]
[1743861830753,2.24303,1792.3,1792.2,2.1622]
[1743861831059,2.24303,1792.3,1792.2,1.4148]
[1743861831962,0.78146,1792.0,1791.9,0.6947]
[1743861832157,0.78146,1792.0,1791.9,1.43877296]
[1743861832350,0.78146,1792.0,1791.9,4.64657296]
[1743861832550,0.78146,1792.0,1791.9,1.43877296]
[1743861832856,0.78146,1792.0,1791.9,1.43891622]
[1743861833357,0.78146,1792.0,1791.9,2.90461622]
[1743861834358,0.78146,1792.0,1791.9,6.11241622]
[1743861838055,0.78146,1792.0,1791.9,5.3682]
[1743861838259,0.78146,1792.0,1791.9,6.11234788]
[1743861839151,0.78146,1792.0,1791.9,5.3682]
[1743861843362,3.838,1792.2,1791.9,6.11282373]
[1743861843663,0.7814,1792.2,1792.0,1.52593646]
[1743861843864,0.7814,1792.2,1792.1,2.26916298]
[1743861844260,0.7814,1792.2,1792.1,1.5246]
[1743861844464,0.00836307,1792.4,1792.2,0.78138]
[1743861844764,0.78965307,1792.4,1792.3,1.5246]
[1743861844963,0.78965307,1792.4,1792.3,2.291]
[1743861845760,0.78965307,1792.4,1792.3,1.5246]
[1743861846064,0.78965307,1792.4,1791.8,0.78152]
[1743861846065,0.78146,1792.0,1791.9,3.2078]
[1743861846363,0.78146,1792.0,1791.9,5.48827577]
[1743861846762,1.5034,1792.3,1791.9,5.48827577]
[1743861847066,0.78141,1792.2,1792.0,3.06192577]
[1743861847368,0.78135,1792.3,1792.1,6.26967577]
[1743861847664,0.78135,1792.3,1792.2,2.994]
[1743861850467,0.78135,1792.3,1792.2,1.5357]
[1743861850667,2.18685,1792.3,1792.2,1.5357]
[1743861850969,0.78146,1792.0,1791.9,3.2078]
[1743861851267,0.78146,1792.0,1791.9,3.95309668]
[1743861851967,0.78146,1792.0,1791.9,4.4833488]
[1743861852269,0.78146,1792.0,1791.9,4.4833208]
[1743861852569,0.78146,1792.0,1791.9,5.9194208]
[1743861853368,0.78145,1792.1,1791.9,6.7009308]
[1743861853671,0.78145,1792.1,1792.0,2.18139668]
[1743861854773,0.78145,1792.1,1792.0,2.96285668]
[1743861854979,0.78145,1792.1,1792.0,2.18139668]
[1743861855275,0.78142,1792.1,1792.0,2.96285668]
[1743861855575,0.78142,1792.1,1792.0,2.18139668]
[1743861856573,0.7814,1792.2,1792.0,2.96284668]
[1743861856774,0.7814,1792.2,1792.1,2.15059668]
[1743861857572,0.7814,1792.2,1792.1,2.15072958]
[1743861858668,0.78966307,1792.4,1792.1,5.35852958]
[1743861858872,0.78966307,1792.4,1792.2,4.39979958]
[1743861859172,0.78966307,1792.4,1792.3,2.14112958]
[1743861861078,0.78966307,1792.4,1792.3,2.14050644]
[1743861861473,0.78966307,1792.4,1792.3,2.1403826]
[1743861861675,0.78966307,1792.4,1792.3,1.3957]
[1743861861875,0.78966307,1792.4,1792.3,2.14038721]
[1743861862071,0.78966307,1792.4,1792.3,1.3957]
[1743861862477,0.78966307,1792.4,1792.3,2.14029847]
[1743861862672,0.78966307,1792.4,1792.3,1.3957]
[1743861862877,0.78965307,1792.4,1792.3,2.14032097]
[1743861863276,0.78965307,1792.4,1792.3,2.92165097]
[1743861863476,0.78965307,1792.4,1792.3,2.14032097]
[1743861864684,0.78965307,1792.4,1792.3,2.14034342]
[1743861864983,0.78965307,1792.4,1792.3,2.14033578]
[1743861865277,0.78119,1792.7,1792.5,0.78122]
[1743861865484,3.2078,1792.8,1792.6,2.8814]
[1743861865782,0.78116,1792.7,1792.6,1.4583]
[1743861865980,0.78116,1792.7,1792.6,2.20235768]
[1743861866583,0.78116,1792.7,1792.6,1.4583]
[1743861866784,0.78950307,1792.8,1792.6,43.78319912]
[1743861866981,0.78116,1792.7,1792.6,42.2583]
[1743861867190,0.78950307,1792.8,1792.6,43.78312856]
[1743861867387,0.78116,1792.7,1792.6,42.2583]
[1743861867587,0.78116,1792.7,1792.6,43.00145856]
[1743861867782,0.78116,1792.7,1792.6,2.20145856]
[1743861867991,0.7812,1792.6,1792.5,0.00836307]
[1743861868895,3.989,1792.6,1792.5,0.00836307]
[1743861869187,3.989,1792.6,1792.3,3.2078]
[1743861869188,0.78129,1792.4,1792.3,3.2078]
[1743861870085,0.78138,1792.2,1792.1,4.6494]
[1743861870488,0.78138,1792.2,1792.1,3.924]
[1743861870690,0.78138,1792.2,1792.1,3.2078]
[1743861871190,0.78146,1792.0,1791.9,42.2854]
[1743861871379,0.78146,1792.0,1791.9,43.02948899]
[1743861871890,0.78146,1792.0,1791.9,43.02958887]
[1743861872189,0.78146,1792.0,1791.9,42.2854]
[1743861873284,0.78146,1792.0,1791.9,1.4854]
[1743861873681,0.78146,1792.0,1791.8,3.2078]
[1743861873682,0.78151,1791.9,1791.8,3.2078]
[1743861873887,0.78151,1791.9,1791.8,44.75209764]
[1743861875783,0.78151,1791.9,1791.8,44.75166872]
[1743861876590,1.4319,1792.3,1791.8,44.75166872]
[1743861876788,0.78144,1792.1,1791.9,1.52517785]
[1743861876985,0.78144,1792.1,1791.8,45.53272]
[1743861877287,0.78144,1792.1,1791.9,1.52507669]
[1743861877481,0.78144,1792.1,1791.9,0.78151]
[1743861877681,0.78148,1792.0,1791.8,45.53274]
[1743861877876,0.78146,1792.0,1791.9,0.74353778]
[1743861878583,0.78145,1792.1,1791.9,1.52502778]
[1743861878788,0.78146,1792.0,1791.8,45.53272]
[1743861878988,0.78146,1792.0,1791.9,0.74339858]
[1743861879590,0.78146,1792.0,1791.9,2.20819858]
[1743861879888,0.78146,1792.1,1791.9,2.20819858]
[1743861880085,0.78146,1792.1,1792.0,1.4648]
[1743861880281,1.4265,1792.3,1792.0,4.6726]
[1743861880587,1.4265,1792.3,1792.1,0.7295]
[1743861880788,1.4265,1792.3,1792.1,2.1943]
[1743861880988,2.20783,1792.3,1792.2,1.4648]
[1743861881583,0.78142,1792.1,1792.0,3.2078]
[1743861881890,4.55742,1792.1,1792.0,3.2078]
[1743861882291,6.00652,1792.1,1792.0,3.2078]
[1743861884888,0.78146,1792.0,1791.9,1.4648]
[1743861889284,0.78146,1792.1,1791.9,2.24631]
[1743861889485,0.78146,1792.1,1792.0,1.5305]
[1743861890390,3.759,1792.3,1792.0,1.5305]
[1743861890586,0.78138,1792.2,1792.1,1.4805]
[1743861891684,0.78138,1792.2,1792.1,2.9803]
[1743861901893,0.78138,1792.2,1792.1,3.72547737]
[1743861903608,0.78138,1792.2,1792.1,3.72527492]
[1743861904504,0.78138,1792.2,1792.1,1.4998]
[1743861904704,2.19498,1792.2,1792.1,1.4998]
[1743861905004,0.78142,1792.1,1792.0,3.2078]
[1743861905190,2.92702,1792.1,1792.0,3.2078]
[1743861905397,0.78142,1792.1,1792.0,3.2078]
[1743861905597,0.78142,1792.1,1792.0,4.6646]
[1743861908103,0.78142,1792.1,1792.0,1.4568]
[1743861908705,0.78155,1791.8,1791.7,3.952]
[1743861908910,0.78155,1791.8,1791.7,1.48916913]
[1743861909099,0.78155,1791.8,1791.7,42.28916913]
[1743861909303,0.78155,1791.8,1791.7,43.0148]
[1743861909608,0.78155,1791.8,1791.7,43.76016307]
[1743861910697,0.78155,1791.8,1791.7,43.0148]
[1743861910896,3.98935,1791.8,1791.7,1.4706]
[1743861912604,0.78164,1791.6,1791.5,40.8]
[1743861912804,0.78164,1791.6,1791.1,3.2078]
[1743861912805,0.78177,1791.3,1791.2,0.7204]
[1743861913205,0.78177,1791.3,1791.2,41.5204]
[1743861914098,4.49977,1791.3,1791.2,41.5204]
[1743861914299,5.96977,1791.3,1791.2,40.8]
[1743861914705,0.78186,1791.1,1791.0,0.7204]
[1743861915415,0.78186,1791.1,1791.0,41.5204]
[1743861915901,0.78186,1791.1,1791.0,42.9104]
[1743861921620,0.78186,1791.1,1791.0,2.1104]
[1743861921912,0.78186,1791.1,1791.0,1.39]
[1743861922115,2.21446,1791.1,1791.0,1.39]
[1743861922312,0.7819,1791.0,1790.9,0.7391]
[1743861922518,5.9844,1791.0,1790.9,2.2779]
[1743861923110,5.9844,1791.0,1790.9,1.5388]
[1743861923519,0.78199,1790.8,1790.7,0.7188]
[1743861924714,0.78199,1790.8,1790.7,2.1436]
[1743861926714,0.78196,1790.9,1790.7,2.1436]
[1743861926920,0.78196,1790.9,1790.8,1.4248]
[1743861933420,2.21026,1790.9,1790.8,1.4248]
[1743861933626,0.78199,1790.8,1790.7,0.7188]
[1743861933823,0.78199,1790.8,1790.7,2.2159]
[1743861934230,0.78199,1790.8,1790.7,1.4971]
[1743861934426,2.26489,1790.8,1790.7,1.4971]
[1743861935123,0.78199,1790.8,1790.7,1.4971]
[1743861935331,0.78199,1790.8,1790.7,2.1968]
[1743861942836,4.47299,1790.8,1790.7,2.1968]
[1743861947031,0.78199,1790.8,1790.7,2.1968]
[1743861947237,0.78199,1790.8,1790.7,5.4046]
[1743861947737,0.78199,1790.8,1790.7,6.14848546]
[1743861950438,0.78199,1790.8,1790.7,2.94068546]
[1743861951140,0.78199,1790.8,1790.7,2.94073176]
[1743861951841,2.22869,1790.8,1790.7,2.1968]
[1743861952043,2.22869,1790.8,1790.7,1.4971]
[1743861953734,2.22869,1790.8,1790.7,2.2142]
[1743861958440,0.78199,1790.8,1790.7,2.2142]
[1743861961251,2.17889,1790.8,1790.7,2.2142]
[1743861962842,0.78199,1790.8,1790.7,2.2142]
[1743861965744,1.95467,1791.1,1790.7,6.16759581]
[1743861965948,0.78194,1790.9,1790.8,1.4464]
[1743861966157,0.78194,1790.9,1790.8,2.19202489]
[1743861966351,0.78194,1790.9,1790.8,1.4464]
[1743861967455,0.78192,1791.0,1790.8,1.4464]
[1743861967649,0.7819,1791.0,1790.9,3.95318825]
[1743861967854,4.4579,1791.0,1790.9,3.95318825]
[1743861970459,4.4579,1791.0,1790.9,3.95194415]
[1743861971958,4.4579,1791.0,1790.9,3.2078]
[1743861973965,4.4579,1791.0,1790.9,3.95167442]
[1743861974358,4.4579,1791.0,1790.9,3.2078]
[1743861981574,4.6248,1791.4,1790.9,3.95156137]
[1743861981869,0.78186,1791.1,1791.0,3.65531588]
[1743861983461,3.675,1791.3,1791.0,3.65531588]
[1743861983657,0.78181,1791.2,1791.1,1.3917]
[1743861985068,2.29101,1791.2,1791.1,1.3917]
[1743861985270,2.9552,1791.2,1790.9,3.2078]
[1743861985471,0.7819,1791.0,1790.9,3.2078]
[1743861985772,0.7819,1791.0,1790.9,4.6599]
[1743861988274,0.7819,1791.0,1790.9,1.4521]
[1743861989268,4.4569,1791.0,1790.9,1.4521]
[1743861989765,5.9356,1791.0,1790.9,1.4521]
[1743861991769,4.4569,1791.0,1790.9,1.4521]
[1743861996178,0.78194,1790.9,1790.8,0.7083]
[1743861996478,2.97624,1790.9,1790.8,0.7083]
[1743861996871,0.78203,1790.7,1790.6,1.4976]
[1743861997266,4.45703,1790.7,1790.6,1.4976]
[1743861997475,5.92253,1790.7,1790.6,1.4976]
[1743861997683,0.78207,1790.6,1790.5,0.7136]
[1743861997873,2.22877,1790.6,1790.5,2.1813]
[1743861999178,2.22877,1790.6,1790.5,1.4677]
[1743861999481,2.99107,1790.6,1790.5,1.4677]
[1743862000580,0.78207,1790.6,1790.5,1.4677]
[1743862000773,0.78207,1790.6,1790.5,2.1726]
[1743862005680,0.78207,1790.6,1790.5,5.3804]
[1743862006579,0.78207,1790.6,1790.5,6.12365292]
[1743862006779,0.00836307,1790.7,1790.5,6.90570019]
[1743862006982,0.79041307,1790.7,1790.6,2.22172019]
[1743862007180,0.79041307,1790.7,1790.6,43.02172019]
[1743862007481,0.79041307,1790.7,1790.6,42.2785]
[1743862009378,0.79041307,1790.7,1790.6,43.02188993]
[1743862009778,0.79041307,1790.7,1790.6,43.80395993]
[1743862009779,0.00836307,1790.7,1790.6,43.80395993]
[1743862010381,0.00836307,1790.7,1790.6,43.80371223]
[1743862011283,0.79039307,1790.7,1790.6,43.80371223]
[1743862011780,0.79039307,1790.7,1790.6,43.02164223]
[1743862011981,0.79039307,1790.7,1790.6,2.22164223]
[1743862012184,0.79039307,1790.7,1790.6,1.4785]
[1743862015783,0.78207,1790.6,1790.5,3.2078]
[1743862016082,0.78207,1790.6,1790.5,3.95225633]
[1743862016484,0.78216,1790.4,1790.3,3.2078]
[1743862016689,0.78216,1790.4,1790.3,3.95239304]
[1743862016893,0.78216,1790.4,1790.3,44.75239304]
[1743862017587,0.78216,1790.4,1790.3,44.75238523]
[1743862017788,0.78216,1790.4,1790.3,46.21278523]
[1743862018382,3.68336307,1790.7,1790.3,46.74260218]
[1743862018587,0.00836307,1790.7,1790.6,0.78207]
[1743862018788,0.00836307,1790.7,1790.6,2.98705523]
[1743862019089,0.79039307,1790.7,1790.6,2.20498523]
[1743862022391,0.79039307,1790.7,1790.6,2.20530755]
[1743862022783,0.00836307,1790.7,1790.6,2.98737755]
[1743862022984,0.00836307,1790.7,1790.6,3.51720028]
[1743862023881,0.00836307,1790.7,1790.6,2.24247]
[1743862024491,0.00836307,1790.7,1790.6,2.98693382]
[1743862024692,0.00836307,1790.7,1790.6,3.51668016]
[1743862025186,0.00836307,1790.7,1790.6,2.77221352]
[1743862025385,0.79039307,1790.7,1790.6,1.99018671]
[1743862026096,0.00836307,1790.7,1790.6,2.24247]
[1743862026493,0.00836307,1790.7,1790.6,2.98730213]
[1743862026896,0.00836307,1790.7,1790.6,2.20523213]
[1743862027090,0.00836307,1790.7,1790.6,3.51725806]
[1743862028299,0.79039307,1790.7,1790.6,3.51698103]
[1743862028600,0.00836307,1790.7,1790.6,2.9870251]
[1743862028802,0.00836307,1790.7,1790.6,3.51681712]
[1743862029189,0.79039307,1790.7,1790.6,3.51681712]
[1743862029602,0.79039307,1790.7,1790.6,2.9870251]
[1743862029902,0.79039307,1790.7,1790.6,3.51668131]
[1743862030096,0.79039307,1790.7,1790.6,3.51667509]
[1743862030302,0.79039307,1790.7,1790.6,3.5168252]
[1743862031303,0.00836307,1790.7,1790.6,3.5168252]
[1743862031606,0.7819,1791.0,1790.9,0.78194]
[1743862031906,0.7819,1791.0,1790.9,4.7342951]
[1743862032404,0.7819,1791.0,1790.9,3.9523551]
[1743862032799,0.7819,1791.0,1790.9,5.3994551]
[1743862033502,0.79024307,1791.1,1790.9,6.1813851]
[1743862033696,0.79024307,1791.1,1791.0,2.8683]
[1743862033901,0.79024307,1791.1,1791.0,3.61217167]
[1743862034105,0.00836307,1791.1,1791.0,4.39407167]
[1743862034305,0.00836307,1791.1,1791.0,4.92306753]
[1743862034804,0.00836307,1791.1,1791.0,4.92314515]
[1743862035195,0.00836307,1791.1,1791.0,4.39407167]
[1743862035396,0.79022307,1791.1,1791.0,2.91417167]
[1743862035600,0.7819,1791.0,1790.9,3.2078]
[1743862036007,0.78194,1790.9,1790.8,1.46026307]
[1743862036305,1.50514,1790.9,1790.8,1.46026307]
[1743862037301,1.4043,1791.0,1790.8,2.9857654]
[1743862037302,0.78191,1791.0,1790.8,2.9857654]
[1743862037605,0.79025307,1791.1,1790.9,5.42867155]
[1743862037809,0.00836307,1791.1,1791.0,1.52522586]
[1743862038107,0.00836307,1791.1,1791.0,2.97522586]
[1743862038511,0.79022307,1791.1,1791.0,2.97522586]
[1743862038707,0.79022307,1791.1,1791.0,2.19332586]
[1743862040603,0.79022307,1791.1,1791.0,1.45]
[1743862041908,0.79022307,1791.1,1790.8,0.00836307]
[1743862041909,0.78194,1790.9,1790.8,0.00836307]
[1743862042403,3.28194,1790.9,1790.8,0.00836307]
[1743862042601,4.69194,1790.9,1790.8,0.00836307]
[1743862043211,2.19194,1790.9,1790.8,0.00836307]
[1743862047010,5.39974,1790.9,1790.8,0.00836307]
[1743862050315,0.78212,1790.5,1790.4,1.4088]
[1743862050516,0.78212,1790.5,1790.4,0.7048]
[1743862050712,0.78212,1790.5,1790.4,2.219]
[1743862050919,0.78212,1790.5,1790.4,2.9527]
[1743862052813,0.78212,1790.5,1790.4,2.219]
[1743862053910,1.52532,1790.5,1790.4,1.5142]
[1743862055812,6.8808,1790.7,1790.4,1.5142]
[1743862056014,0.78207,1790.6,1790.5,0.7646]
[1743862056205,0.78207,1790.6,1790.5,2.1848]
[1743862056918,0.78207,1790.6,1790.5,5.3926]
[1743862062823,0.78207,1790.6,1790.5,2.1848]
[1743862063815,3.41353,1790.9,1790.5,2.1848]
[1743862064117,0.78203,1790.7,1790.6,1.4546]
[1743862075526,0.00836307,1791.1,1790.6,14.0646353]
[1743862075732,0.00836307,1791.1,1791.0,3.2078]
[1743862075931,0.00836307,1791.1,1791.0,4.4818753]
[1743862076126,0.00836307,1791.1,1791.0,4.48122778]
[1743862076325,0.79022307,1791.1,1791.0,6.8924256]
[1743862077631,0.78167,1791.6,1791.3,0.78176]
[1743862077928,0.78168,1791.5,1791.4,6.1845]
[1743862078134,0.78168,1791.5,1791.4,5.4731]
[1743862078330,0.78168,1791.5,1791.4,3.2078]
[1743862078530,0.78177,1791.3,1791.2,3.2078]
[1743862078835,0.78177,1791.3,1791.2,4.7093]
[1743862079031,0.78177,1791.3,1791.2,1.5015]
[1743862080535,2.93787,1791.3,1791.2,1.5015]
[1743862080832,0.00836307,1791.6,1791.2,7.95157577]
[1743862081033,0.00836307,1791.6,1791.4,3.2078]
[1743862081221,0.79000307,1791.6,1791.5,3.0132]
[1743862082235,0.78175,1791.4,1791.2,3.2078]
[1743862082433,0.78175,1791.4,1791.3,3.0063]
[1743862083137,0.00836307,1791.6,1791.5,0.78168]
[1743862083435,0.00836307,1791.6,1791.5,45.5304941]
[1743862083624,0.00836307,1791.6,1791.5,48.0304941]
[1743862083827,0.00836307,1791.6,1791.5,48.02965254]
[1743862084430,0.00836307,1791.6,1791.5,48.47332019]
[1743862084634,0.00836307,1791.6,1791.5,48.02965254]
[1743862084831,0.00836307,1791.6,1791.5,44.74797254]
[1743862085134,0.79000307,1791.6,1791.5,4.6207]
[1743862085534,0.79000307,1791.6,1791.5,1.4129]
[1743862086130,0.78173,1791.4,1791.3,4.6804]
[1743862087537,2.21203,1791.4,1791.3,4.6804]
[1743862088231,2.21203,1791.4,1791.3,3.9718]
[1743862089837,0.78173,1791.4,1791.3,3.9718]
[1743862091446,2.16823,1791.4,1791.3,3.9718]